Cogmind - Beta 15 @@@ ROGUE MODE // 2025.05.17 @ 23:06:21 Player: jumpy Result: Destroyed by Y-54 Guardian with Flak Gun Performance ------------- Evolutions (3) 1500 Regions Visited (6) 1200 Robots Destroyed (85) 425 Value Destroyed (2300) 2300 Prototype IDs (8) 160 Alien Tech Used (0) 0 Bonus (0) 0 TOTAL SCORE: 5585 Bonus ------- None Cogmind --------- Core Integrity 0/700 Matter 279/300 Energy 296/300 System Corruption 17% Temperature Cool (12) Movement Rolling (90) Location -7/Factory Parts ------- > --- POWER (1) -------- Enhanced Nuclear Core > --- PROPULSION (4) --- Wheel Wheel Compact Wheel Compact Wheel > --- UTILITY (5) ------ Large Storage Unit Experimental Signal Interpreter Improved Medium Armor Plating Experimental Hacking Suite > --- WEAPON (3) ------- Enhanced Autogun Enhanced Autogun Katana > --- INVENTORY (15) --- Light Nuclear Core Enhanced Nuclear Core Micro Nuclear Core Micro Nuclear Core Micro Nuclear Core Improved Signal Interpreter Hacking Suite Enhanced Autogun Enhanced Autogun Enhanced Autogun Enhanced Autogun Improved Grenade Launcher Remote Datajack Peak State ------------ > --- POWER ------------ Enhanced Nuclear Core > --- PROPULSION ------- Advanced Treads Wheel Compact Wheel Cooled Gravmag System > --- UTILITY ---------- Improved Heat Sink Large Storage Unit Improved Sensor Array Improved Medium Armor Plating Experimental Hacking Suite > --- WEAPON ----------- Enhanced Autogun Enhanced Autogun Katana > --- INVENTORY -------- Light Nuclear Core Enhanced Nuclear Core Micro Nuclear Core Micro Nuclear Core Micro Nuclear Core Improved Signal Interpreter Hacking Suite Enhanced Autogun Enhanced Autogun Enhanced Autogun Enhanced Autogun Improved Grenade Launcher Remote Datajack [Rating: 51] Favorites ----------- Power Improved Ion Engine Engine Improved Ion Engine Power Core Micro Nuclear Core Propulsion Light Treads Treads Light Treads Leg Improved Titanium Leg Wheel Compact Wheel Hover Unit Cooled Gravmag System Utility Large Storage Unit Device Seismic Detector Storage Large Storage Unit Processor Target Analyzer Hackware Experimental Hacking Suite Protection Improved Light Armor Plating Weapon Heavy Assault Rifle Energy Gun Beam Rifle Energy Cannon Plasma Cannon Ballistic Gun Heavy Assault Rifle Launcher Shock Bomb Launcher Impact Weapon Power Maul Slashing Weapon Katana Piercing Weapon Spear Build | -11 -10 -9 -8 -7 -7 -7 ------- Run | Yrd Mat Mat Mat Fac Was Fac Slots Evolved 6 | . . 2 2 2 . . Power . | . . . . . . . Propulsion 2 | . . . 2 . . . Utility 3 | . . 2 . 1 . . Weapon 1 | . . . . 1 . . Parts Attached 98 | 8 4 21 16 3 . 46 Power 15 | 2 1 2 3 . . 7 Engine 6 | 2 1 2 1 . . . Core 9 | . . . 2 . . 7 Reactor . | . . . . . . . Propulsion 31 | 2 2 5 6 . . 16 Treads 23 | 2 2 5 6 . . 8 Leg 3 | . . . . . . 3 Wheel 4 | . . . . . . 4 Hover 1 | . . . . . . 1 Flight . | . . . . . . . Utility 26 | 2 1 7 2 1 . 13 Device 9 | 1 . 2 2 . . 4 Storage 5 | 1 1 1 . . . 2 Processor 4 | . . . . 1 . 3 Hackware 1 | . . . . . . 1 Protection 7 | . . 4 . . . 3 Artifact . | . . . . . . . Weapon 26 | 2 . 7 5 2 . 10 Energy Gun 5 | . . 2 . . . 3 Energy Cannon 3 | . . . 2 1 . . Ballistic Gun 13 | 2 . 5 2 1 . 3 Ballistic Cannon . | . . . . . . . Launcher 1 | . . . 1 . . . Special Weapon . | . . . . . . . Impact Weapon 1 | . . . . . . 1 Slashing Weapon 2 | . . . . . . 2 Piercing Weapon 1 | . . . . . . 1 Special Melee Weapon . | . . . . . . . Unidentified Prototypes 8 | . . 2 . . . 6 Parts Lost 19 | . . 1 1 . 3 14 Power 1 | . . . . . . 1 Propulsion 9 | . . . 1 . 2 6 Utility 4 | . . 1 . . . 3 Weapon 5 | . . . . . 1 4 Highest Loss Streak 3 | . . 1 1 . 3 2 To Critical Strikes . | . . . . . . . Average Backups 11 | 4 9 14 14 13 11 9 Power 1 | . 1 1 2 2 1 2 Propulsion 3 | 1 3 5 4 4 3 1 Utility 2 | . 2 2 2 3 2 2 Weapon 3 | . 2 5 4 3 2 2 Tool/Special . | . . . . . . . Unused Backups 30 | . . 9 2 . 4 15 Power 8 | . . . 1 . 2 5 Propulsion 4 | . . 3 . . 1 . Utility 4 | . . 1 . . . 3 Weapon 12 | . . 5 1 . . 6 Tool/Special 2 | . . . . . 1 1 Average Slot Usage (%) 88 | . 100 95 99 99 73 73 Engine 6 | . 14 11 4 7 4 . Core 2 | . . . 4 . . 6 Treads 24 | . 28 22 35 30 20 21 Device 11 | . 14 17 9 15 12 6 Storage 9 | . 14 11 9 7 5 6 Processor 2 | . . . . 6 5 4 Protection 7 | . . 11 17 7 4 5 Energy Gun 4 | . . 7 . . . 5 Ballistic Gun 13 | . 28 14 16 15 12 2 Slashing Weapon 1 | . . . . . . 4 Peak Build Rating 51 | 7 8 20 25 30 30 51 Average Rating 21 | 5 7 16 23 29 21 33 On Entrance 12 | . 7 8 20 24 30 1 Naked Turns 97 | . . . . . 22 75 Heaviest Build 57 | 15 30 40 43 43 43 57 Greatest Support 86 | 40 40 44 83 83 83 86 Greatest Overweight (x) 1 | . . . . . 1 1 Average Overweight (x) . | . . . . . . . Largest Inventory Capacity 15 | 8 15 15 15 15 15 15 Average Capacity 13 | 7 14 15 15 15 12 12 Most Carried 15 | 6 14 15 15 14 13 14 Average Carried 11 | 4 9 14 14 13 11 9 Final Capacity 15 | 8 15 15 15 15 5 15 Final Carried 15 | 6 13 15 15 13 5 13 Class Distribution -------------------- 51% | Mutant 44% | Scavenger-Mutant 3% | Tank Dominant Class ---------------- Mutant | -10/Materials Scavenger-Mutant | -9/Materials Mutant | -8/Materials Tank | -7/Factory Tank | -7/Waste Scavenger-Mutant | -7/Factory Resources | -11 -10 -9 -8 -7 -7 -7 ----------- Run | Yrd Mat Mat Mat Fac Was Fac Matter Collected 2226 | 340 320 388 417 . . 761 Remotely . | . . . . . . . Salvage Created 3238 | 152 555 905 417 . . 1209 Parts 196 | 17 27 63 25 . . 64 Haulers Intercepted 7 | . 2 2 1 . . 2 Recyclers Shooed 5 | 1 . 3 . . . 1 Parts Field Recycled . | . . . . . . . Retrieved Matter . | . . . . . . . Parts Self-Destructed . | . . . . . . . Prevented . | . . . . . . . Kills | -11 -10 -9 -8 -7 -7 -7 ------- Run | Yrd Mat Mat Mat Fac Was Fac Combat Hostiles Destroyed 63 | . 12 25 7 . . 19 Melee 16 | . . . . . . 16 Guns 46 | . 12 25 7 . . 2 Classes Destroyed 11 | 3 3 2 1 . . 2 Worker 6 | 1 1 . . . . 4 Tunneler 4 | 4 . . . . . . Hauler 7 | . 2 2 1 . . 2 Recycler 3 | 1 . . . . . 2 Operator 1 | . . . . . . 1 Watcher 1 | . . 1 . . . . Swarmer 21 | . 3 14 . . . 4 Grunt 24 | . 9 3 3 . . 9 Sentry 12 | . . 8 2 . . 2 Hunter 3 | . . . 2 . . 1 Programmer 3 | . . . . . . 3 Best Kill Streak 7 | 3 3 4 4 . . 7 Combat Bots Only 5 | . 3 4 4 . . 5 Max Kills in Single Turn 2 | 1 1 2 1 . . 1 Gunslinging 1 | . . 1 . . . . Exploded . | . . . . . . . Melee 1 | . . . . . . 1 Uniques/NPCs Destroyed . | . . . . . . . Combat | -11 -10 -9 -8 -7 -7 -7 -------- Run | Yrd Mat Mat Mat Fac Was Fac Hostile Shots Fired 638 | . 50 124 65 . 7 392 Missed 197 | . 11 31 19 . 1 135 Hits 441 | . 39 93 46 . 6 257 Melee 6 | . . . . . 6 . Projectile 435 | . 39 93 46 . . 257 AOE 1 | . . . . . . 1 Critical Strikes 10 | . . 3 1 . 3 3 Part Disruptions 1 | . . . . . . 1 Damage Taken 5800 | . 448 976 698 . 260 3418 Core 977 | . 53 146 73 . 165 540 Absorbed by Shields . | . . . . . . . Core Remaining (%) 81 | 100 78 63 86 . . . Volleys Fired 216 | 10 48 67 45 . . 46 Largest 2 | 2 2 2 2 . . 2 Hottest 106 | 40 40 79 60 . . 106 Shots Fired 387 | 20 96 134 86 . . 51 Gun 383 | 20 96 134 82 . . 51 Cannon 3 | . . . 3 . . . Launcher 1 | . . . 1 . . . Special . | . . . . . . . Kinetic 298 | 20 96 86 82 . . 14 Thermal 59 | . . 48 3 . . 8 Explosive . | . . . . . . . Electromagnetic 30 | . . . 1 . . 29 Robot Hit Streak 21 | 2 8 21 17 . . 12 Robot Miss Streak 4 | 3 4 3 3 . . 4 Penetration Max . | . . . . . . . Secondary Targets 4 | . . 3 1 . . . Max Gunslinging Chain 1 | . . 1 1 . . . Shots Hit Robots 305 | 9 55 99 62 . . 80 Core Hits 131 | 7 31 42 20 . . 31 Critical Kills 2 | . . 1 . . . 1 Critical Parts Destroyed 3 | . 1 . 1 . . 1 Critical Strikes 16 | . 1 3 1 . . 11 Burn 2 | . . 2 . . . . Destroy 3 | . 1 1 1 . . . Corrupt 1 | . . . . . . 1 Smash 2 | . . . . . . 2 Sever 8 | . . . . . . 8 Melee Attacks 72 | . . . . . . 72 Impact 11 | . . . . . . 11 Slashing 55 | . . . . . . 55 Piercing 6 | . . . . . . 6 Sneak Attacks 10 | . . . . . . 10 Combat Hostiles . | . . . . . . . Follow-up Attacks . | . . . . . . . Damage Inflicted 6239 | 122 707 1502 859 . . 3049 Guns 3599 | 122 707 1495 859 . . 416 Cannons . | . . . . . . . Explosions 30 | . . . . . . 30 Melee 2601 | . . . . . . 2601 Ramming 9 | . . 7 . . . 2 Kinetic 2811 | 122 707 945 859 . . 178 Thermal 594 | . . 550 . . . 44 Explosive . | . . . . . . . Electromagnetic 224 | . . . . . . 224 Impact 249 | . . . . . . 249 Slashing 2192 | . . . . . . 2192 Piercing 160 | . . . . . . 160 Highest Corruption 17 | . . . 3 . 5 17 Average Corruption 10 | . . . 2 . 5 11 Corruption Purged . | . . . . . . . Corruption Blocked . | . . . . . . . Effects 80 | . . . . . . 80 Message Errors 21 | . . . . . . 21 Matter Fused 13 | . . . . . . 13 Heat Flow Errors 6 | . . . . . . 6 Energy Discharges 8 | . . . . . . 8 Parts Rejected 2 | . . . . . . 2 Parts Fused 2 | . . . . . . 2 Data Loss (minor) 15 | . . . . . . 15 Data Loss (major) 4 | . . . . . . 4 Misfires 4 | . . . . . . 4 Alerts 2 | . . . . . . 2 Misdirections 2 | . . . . . . 2 Weapon Failures 1 | . . . . . . 1 Overload Shots . | . . . . . . . Overflow Damage 277 | . . . . . . 277 Projectiles 35 | . . . . . . 35 Explosions . | . . . . . . . Melee 242 | . . . . . . 242 Knockbacks 3 | . . . . . . 3 Impact 2 | . . . . . . 2 Kinetic . | . . . . . . . Secondary 1 | . . . . . . 1 Self-Inflicted Damage . | . . . . . . . Shots . | . . . . . . . Rammed 4 | . . 3 1 . . . Targets Rammed 5 | . . 3 1 . . 1 Kicked 1 | . . . . . . 1 Crushed . | . . . . . . . Highest Temperature 303 | . 2 243 54 . . 303 Average Temperature 64 | . 2 68 13 . . 82 Received Heat Transfer 1212 | . 207 207 162 . . 636 Siege Activations . | . . . . . . . Martial Activations . | . . . . . . . Shielding Activations . | . . . . . . . Robots Disrupted . | . . . . . . . Combat Hostiles . | . . . . . . . Robots Corrupted 1 | . . . . . . 1 Combat Hostiles 1 | . . . . . . 1 Parts Fried . | . . . . . . . Impact Corruptions 3 | . . . . . . 3 Robots Melted . | . . . . . . . Combat Hostiles . | . . . . . . . Parts Melted 2 | . . 2 . . . . Heat Transferred 1641 | . . 1554 . . . 87 Parts Sabotaged . | . . . . . . . Parts Stolen . | . . . . . . . Parts Stripped . | . . . . . . . Power Chain Reactions 1 | . . . . . . 1 Alert | -11 -10 -9 -8 -7 -7 -7 ------- Run | Yrd Mat Mat Mat Fac Was Fac Maximum Alert Level 1 | . . 1 . . . . Low Security (%) 91 | 100 100 68 100 100 100 100 Level 1 8 | . . 31 . . . . Level 2 . | . . . . . . . Level 3 . | . . . . . . . Level 4 . | . . . . . . . Level 5 . | . . . . . . . High Security . | . . . . . . . Max Security . | . . . . . . . Peak Influence 291 | 10 100 291 174 56 . 180 Initial 120 | . . 26 120 56 . . Average 70 | . 32 110 114 24 . 58 Influence Increases 2202 | 30 428 763 317 . . 664 Destroy 0b10 Robot/C 1260 | . 240 500 140 . . 380 Destroy 0b10 Robot/NC 110 | 30 15 15 5 . . 45 Destroy Leader 346 | . 64 136 52 . . 94 Successful Hack 45 | . 18 5 . . . 22 Disable Machine 30 | . . . 15 . . 15 Destroy Structure 6 | . 1 2 . . . 3 Lose Combat Pursuer 405 | . 90 105 105 . . 105 Influence Decreases 2066 | 30 366 540 477 125 . 528 Entered New Map 270 | . . 36 165 69 . . Time Decay 1666 | 30 366 494 302 56 . 418 Lost Part 130 | . . 10 10 . . 110 Squads Dispatched 16 | . 3 2 . . . 11 Investigation 3 | . 1 . . . . 2 Extermination 4 | . . . . . . 4 Reinforcement 9 | . 2 2 . . . 5 Assault . | . . . . . . . Garrison . | . . . . . . . Intercept . | . . . . . . . Searches Triggered . | . . . . . . . Construction Impeded . | . . . . . . . Haulers Reinforced 2 | . . . . . . 2 Active Scanning Responses . | . . . . . . . Cargo Convoy Interrupts 1 | . . . . . . 1 Stealth | -11 -10 -9 -8 -7 -7 -7 --------- Run | Yrd Mat Mat Mat Fac Was Fac Distress Signals 12 | . 2 7 1 . . 2 Communications Jammed . | . . . . . . . Distress Signals . | . . . . . . . Times Spotted 122 | . 25 36 18 . 6 37 Peak Tracking Total 6 | . 4 5 6 . 6 5 Tactical Retreats 19 | . 3 6 5 . . 5 Traps | -11 -10 -9 -8 -7 -7 -7 ------- Run | Yrd Mat Mat Mat Fac Was Fac Traps Triggered 11 | . 2 . 2 1 . 6 Indirectly . | . . . . . . . Trap Hack Attempts . | . . . . . . . Triggered . | . . . . . . . Disarmed . | . . . . . . . Reprogrammed . | . . . . . . . Reused . | . . . . . . . Traps Extracted . | . . . . . . . Installed . | . . . . . . . Triggered . | . . . . . . . Machines | -11 -10 -9 -8 -7 -7 -7 ---------- Run | Yrd Mat Mat Mat Fac Was Fac Machines Disabled 2 | . . . 1 . . 1 Max in Single Turn 1 | . . . 1 . . 1 Machines Repaired . | . . . . . . . Machines Dismantled . | . . . . . . . Machines Sabotaged . | . . . . . . . Overloaded Fab Kills . | . . . . . . . Hacking | -11 -10 -9 -8 -7 -7 -7 --------- Run | Yrd Mat Mat Mat Fac Was Fac Machines Accessed 15 | . 5 5 . . . 5 Terminals 11 | . 5 5 . . . 1 Fabricators 2 | . . . . . . 2 Repair Stations 1 | . . . . . . 1 Recycling Units . | . . . . . . . Scanalyzers 1 | . . . . . . 1 Garrison Access . | . . . . . . . Total Hacks 27 | . 8 8 . . . 11 Successful 16 | . 5 6 . . . 5 Failed 11 | . 3 2 . . . 6 Catastrophic 1 | . . . . . . 1 Database Lockouts . | . . . . . . . Manual 18 | . 9 7 . . . 2 Terminals 18 | . 8 8 . . . 2 Fabricators 5 | . . . . . . 5 Repair Stations 2 | . . . . . . 2 Recycling Units . | . . . . . . . Scanalyzers 2 | . . . . . . 2 Garrison Access . | . . . . . . . Terminal Hacks 1 | . . 1 . . . . Zone Layout 1 | . . 1 . . . . Fabricator Hacks 3 | . . . . . . 3 Load Schematic 2 | . . . . . . 2 Build 1 | . . . . . . 1 Repair Station Hacks . | . . . . . . . Recycling Unit Hacks . | . . . . . . . Scanalyzer 2 | . . . . . . 2 Insert Component 1 | . . . . . . 1 Analyze 1 | . . . . . . 1 Garrison Access Hacks . | . . . . . . . Unauthorized Hacks 10 | . 5 5 . . . . Terminals 10 | . 5 5 . . . . Skim 10 | . 5 5 . . . . Fabricators . | . . . . . . . Repair Stations . | . . . . . . . Recycling Units . | . . . . . . . Scanalyzers . | . . . . . . . Garrison Access . | . . . . . . . Data Cores Recovered . | . . . . . . . Used . | . . . . . . . Hacking Detections 8 | . 1 2 . . . 5 Full Trace Events 1 | . . . . . . 1 Feedback Events . | . . . . . . . Feedback Blocked . | . . . . . . . Robot Schematics Acquired . | . . . . . . . Robots Built . | . . . . . . . Authchips . | . . . . . . . Time . | . . . . . . . Total Robot Build Rating . | . . . . . . . Part Schematics Acquired 1 | . . . . . . 1 Parts Built 2 | . . . . . . 2 Authchips . | . . . . . . . Time 73 | . . . . . . 73 Total Part Build Rating 6 | . . . . . . 6 Parts Repaired . | . . . . . . . Time . | . . . . . . . Parts Recycled . | . . . . . . . Recycled Matter . | . . . . . . . Retrieved Matter . | . . . . . . . Retrieved Components . | . . . . . . . Parts Scanalyzed 1 | . . . . . . 1 Part Schematics Acquired 1 | . . . . . . 1 Parts Damaged . | . . . . . . . Bothacking | -11 -10 -9 -8 -7 -7 -7 ------------ Run | Yrd Mat Mat Mat Fac Was Fac Used RIF Installer . | . . . . . . . Robots Hacked . | . . . . . . . Non-combat . | . . . . . . . Combat . | . . . . . . . Robot Hacks Applied . | . . . . . . . Relay Couplers Released . | . . . . . . . Fabnet Peak Effective % . | . . . . . . . Robots Rewired . | . . . . . . . Allies Hacked . | . . . . . . . Hacks Repelled . | . . . . . . . Allies | -11 -10 -9 -8 -7 -7 -7 -------- Run | Yrd Mat Mat Mat Fac Was Fac Total Allies . | . . . . . . . Largest Group . | . . . . . . . Highest-Rated Group . | . . . . . . . Highest-Rated Ally . | . . . . . . . Total Orders . | . . . . . . . Ally Attacks . | . . . . . . . Total Damage . | . . . . . . . Kills . | . . . . . . . Allies Corrupted . | . . . . . . . Allies Melted . | . . . . . . . Intel | -11 -10 -9 -8 -7 -7 -7 ------- Run | Yrd Mat Mat Mat Fac Was Fac Active Infowar (turns) 4619 | 69 1265 1776 679 150 70 610 Sensors 590 | . . . . . . 590 Terrain 1290 | . . 1028 42 150 70 . Seismic 4028 | 69 1265 1775 679 150 70 20 Robot Analysis Total . | . . . . . . . Derelict Logs Recovered . | . . . . . . . Drone Launches . | . . . . . . . Drone Recoveries . | . . . . . . . Exploration | -11 -10 -9 -8 -7 -7 -7 ------------- Run | Yrd Mat Mat Mat Fac Was Fac Turns Passed 6414 | 245 1265 1776 679 150 92 2207 Spaces Moved 3308 | 127 573 892 312 92 87 1225 Core 198 | 4 . . . . 45 149 Treads 2841 | 123 573 892 312 92 42 807 Legs 111 | . . . . . . 111 Wheels 158 | . . . . . . 158 Hover . | . . . . . . . Flight . | . . . . . . . Fastest Speed 50 | 50 160 145 160 160 50 50 Average Speed 148 | 156 160 159 160 160 105 132 Slowest Speed 240 | 160 160 160 160 160 240 225 Overloaded Moves . | . . . . . . . Propulsion Burnouts . | . . . . . . . Robots Hopped . | . . . . . . . Potential Cave-ins . | . . . . . . . Cave-ins Triggered 1 | . . . . . . 1 Exploration Rate (%) 42 | 7 85 67 21 3 80 32 Regions Visited 6 Branch Regions . Pre-discovered Areas 3 | . 1 2 . . . . Known Exits Taken 2 | . 1 1 . . . . Unknown Exits Taken 2 | 1 . . 1 . . . Scrap Searched . | . . . . . . . Spaces Dug . | . . . . . . . Terrain Destroyed 2 | . . . . . . 2 Melee . | . . . . . . . Projectile . | . . . . . . . AOE 2 | . . . . . . 2 Terrain Rammed . | . . . . . . . Walls Destroyed . | . . . . . . . Machines Disabled . | . . . . . . . Actions | -11 -10 -9 -8 -7 -7 -7 --------- Run | Yrd Mat Mat Mat Fac Was Fac Total 4307 | 149 824 1121 410 95 86 1622 Wait 472 | . 192 84 14 . . 182 Move 3303 | 126 572 891 311 92 86 1225 Hop . | . . . . . . . Pick Up 63 | 5 5 22 7 . . 24 Fast Attach 36 | 7 . 2 1 . . 26 Attach 21 | . . 3 4 2 . 12 Detach 1 | . . . . . . 1 Swap 57 | 1 5 20 13 1 . 17 Drop 61 | . 2 29 14 . . 16 Fire 216 | 10 48 67 45 . . 46 Melee 72 | . . . . . . 72 Ram . | . . . . . . . Kick 1 | . . . . . . 1 Crush 4 | . . 3 1 . . . Escape Stasis . | . . . . . . . Rewire . | . . . . . . . Trap . | . . . . . . . Miscellaneous . | . . . . . . . Route ------- -11/Scrapyard -10/Materials (discovered 4 exits: *Mat x3 / [*Min]) -9/Materials (discovered 5 exits: *Mat x3 / [*Min] / [*Sto]) -8/Materials -7/Factory -7/Waste -7/Factory History --------- Turn | Location | Event 3 | -11/Scrapyard | Discovered new exit (range 15) 246 | -11/Scrapyard | Entered Materials 304 | -10/Materials | Build established: Mutant 337 | -10/Materials | Discovered new exit (range 12) 531 | -10/Materials | Discovered new exit (range 14) 1311 | -10/Materials | Learned 2 Mines zone layouts 1346 | -10/Materials | Identified exit to Materials 1384 | -10/Materials | Learned Storage emergency access door positions 1391 | -10/Materials | Learned location of 1 exit from Recycling 1392 | -10/Materials | Learned location of Mines (-10) 1393 | -10/Materials | Loaded intel: 3 trap records 1400 | -10/Materials | Learned location of 2 exits from Mines 1419 | -10/Materials | Learned Materials trap positions 1511 | -10/Materials | Entered another Materials area 1511 | -9/Materials | Evolved 2 slots: Utility x2 1512 | -9/Materials | Identified exit to Materials 1513 | -9/Materials | Loaded intel: 9 trap records 1528 | -9/Materials | Discovered new exit (range 14) 1830 | -9/Materials | Build established: Scavenger-Mutant 2346 | -9/Materials | Discovered new exit (range 13) 2584 | -9/Materials | Discovered exit to Materials (range 14) 3031 | -9/Materials | Learned Storage garrison access intel 3171 | -9/Materials | Learned Storage stockpile data 3228 | -9/Materials | Learned Storage security intel 3276 | -9/Materials | Learned location of Recycling (-9) 3287 | -9/Materials | Entered another Materials area 3287 | -8/Materials | Evolved 2 slots: Propulsion x2 3466 | -8/Materials | Build established: Mutant 3958 | -8/Materials | Discovered new exit (range 6) 3966 | -8/Materials | Entered Factory 3966 | -7/Factory | Evolved 2 slots: Utility x1, Weapon x1 4116 | -7/Factory | Sucked down chute 4116 | -7/Factory | Entered Waste 4131 | -7/Waste | EMP discharged 4143 | -7/Waste | Spotted C-40 Crusher 4156 | -7/Waste | Spotted C-40 Crusher 4167 | -7/Waste | Crushed by Compactor (1 part destroyed, 2 dropped) 4178 | -7/Waste | Crushed by Compactor (1 part destroyed, 1 dropped) 4181 | -7/Waste | Spotted C-40 Crusher 4186 | -7/Waste | Crushed by Compactor (1 part destroyed, 2 dropped) 4186 | -7/Waste | Released all parts (5) 4187 | -7/Waste | Spotted C-40 Crusher 4197 | -7/Waste | Spotted C-40 Crusher 4198 | -7/Waste | Spotted C-40 Crusher 4203 | -7/Waste | Discovered new exit (range 10) 4208 | -7/Waste | Entered Factory 4217 | -7/Factory | Lost 3 parts (2n1w) 4456 | -7/Factory | Core integrity fell below 50% 4520 | -7/Factory | Crushed by falling debris 4520 | -7/Factory | System corruption reached 10% 4779 | -7/Factory | Core integrity fell below 20% 5185 | -7/Factory | Build established: Scavenger-Mutant 5416 | -7/Factory | Fabricated Adv. Treads? 5622 | -7/Factory | Cargo convoy interrupted 6270 | -7/Factory | Found Prototype Hackware 6270 | -7/Factory | Identified Exp. Hacking Suite 6291 | -7/Factory | Build established: Mutant 6354 | -7/Factory | Found Prototype Processor 6354 | -7/Factory | Identified Exp. Signal Interpreter 6415 | -7/Factory | Destroyed by Y-54 Guardian with Flak Gun Last Messages --------------- 06286_ Acquired Enh. Autogun. 06289_ System corrupted: Heat flow error (+248). 06291_ ALERT: Potential suspicious activity detected, Programmers report to Factory Zone 1P. 06324_ PKQ&B:=UBLBG9IO FA5SPCOG/Z